bitfinex/quotes_SOLUSD_20260308
["timestamp","ask_amount","ask_price","bid_price","bid_amount"]
[1772951599888,0.42789499,82.369,82.329,42.51235894]
[1772951599889,0.42822834,82.367,82.332,0.51558811]
[1772951602692,12.14093193,82.366,82.333,12.14579816]
[1772951602875,0.42870035,82.365,82.334,0.51558811]
[1772951605797,0.42915834,82.363,82.336,0.51558811]
[1772951614199,0.43058544,82.382,82.338,0.49321697]
[1772951617006,0.43098744,82.38,82.34,0.49321697]
[1772951619803,0.43123978,82.378,82.342,0.49321697]
[1772951622290,0.43161381,82.376,82.344,0.49321697]
[1772951623705,0.43173572,82.374,82.345,12.14402817]
[1772951623913,0.43173572,82.374,82.346,0.49321697]
[1772951624293,7.72697509,82.385,82.347,0.49321697]
[1772951626102,0.43209027,82.384,82.35,0.49321697]
[1772951628913,0.43232076,82.382,82.352,0.49321697]
[1772951630701,0.4325524,82.38,82.352,0.49321697]
[1772951631308,0.4325524,82.38,82.353,12.14284846]
[1772951631517,0.4325524,82.38,82.354,0.49321697]
[1772951634820,0.4325524,82.38,82.355,12.14255357]
[1772951635023,0.4325524,82.38,82.356,0.49321697]
[1772951636921,0.4325524,82.38,82.358,0.49321697]
[1772951637526,12.57231827,82.379,82.358,0.49321697]
[1772951637914,0.43330226,82.378,82.358,0.49321697]
[1772951638112,0.43330226,82.378,82.338,0.49321697]
[1772951638315,0.43330226,82.378,82.34,0.49321697]
[1772951638906,0.43350738,82.376,82.342,0.49321697]
[1772951641704,0.43370201,82.374,82.344,0.49321697]
[1772951642824,12.13990021,82.373,82.344,0.49321697]
[1772951643008,0.43400409,82.372,82.344,0.49321697]
[1772951643526,0.43400409,82.372,82.346,0.52725363]
[1772951644710,12.57270935,82.383,82.346,0.52725363]
[1772951644908,0.43428145,82.387,82.349,0.52725363]
[1772951647212,0.43446334,82.385,82.35,12.14329083]
[1772951647532,0.43446334,82.385,82.35,12.67054446]
[1772951648335,0.43446334,82.385,82.351,0.52725363]
[1772951649531,0.43464196,82.383,82.352,12.14299591]
[1772951650027,0.43464196,82.383,82.352,12.67024954]
[1772951652128,12.13857396,82.382,82.352,0.52725363]
[1772951652329,0.43414081,82.381,82.352,0.52725363]
[1772951661845,4.71620295,82.39,82.348,0.52725363]
[1772951661846,0.431683,82.379,82.348,0.52725363]
[1772951663354,0.43117181,82.377,82.333,0.52725363]
[1772951664740,0.43091926,82.375,82.335,0.52725363]
[1772951668954,0.42993578,82.373,82.337,0.52725363]
[1772951672156,0.42899299,82.371,82.339,0.52725363]
[1772951672650,12.14004758,82.372,82.339,0.52725363]
[1772951676557,0.42788195,82.38,82.341,0.50019033]
[1772951677445,0.42766777,82.388,82.341,0.50019033]
[1772951679050,0.42724539,82.386,82.343,0.50019033]
[1772951679641,0.42724539,82.395,82.344,0.50019033]
[1772951681062,0.736,82.396,82.347,0.50019033]
[1772951681063,0.42703696,82.392,82.347,0.50019033]
[1772951684051,0.42642663,82.39,82.35,0.50019033]
[1772951687066,0.42582927,82.388,82.352,0.50019033]
[1772951688063,0.42544999,82.386,82.354,0.50019033]
[1772951690472,0.42507747,82.384,82.356,0.50019033]
[1772951692868,0.42470794,82.388,82.358,0.50019033]
[1772951694970,12.56201548,82.387,82.36,0.50019033]
[1772951695163,0.4241782,82.386,82.36,0.50019033]
[1772951698367,0.42365568,82.384,82.36,0.50019033]
[1772951698674,0.42365568,82.369,82.316,0.50019033]
[1772951698858,0.42365568,82.359,82.317,0.50019033]
[1772951700571,0.42331798,82.357,82.32,0.50019033]
[1772951701072,0.42315204,82.369,82.32,0.50019033]
[1772951702373,0.4228243,82.368,82.323,0.51346423]
[1772951703861,0.4228243,82.368,82.326,0.48060914]
[1772951705254,0.42218762,82.373,82.329,0.48060914]
[1772951707075,0.42218762,82.373,82.331,0.48060914]
[1772951708470,0.42173038,82.381,82.331,0.48060914]
[1772951709669,0.42173038,82.381,82.335,0.48060914]
[1772951710789,0.42143873,82.38,82.335,0.48060914]
[1772951714201,0.42143873,82.38,82.338,0.48060914]
[1772951717696,0.42143873,82.38,82.341,0.48060914]
[1772951720073,0.42143873,82.38,82.344,0.48060914]
[1772951722275,0.42143873,82.38,82.347,0.48060914]
[1772951723669,12.13901601,82.379,82.347,0.48060914]
[1772951723889,0.41969319,82.378,82.347,0.48060914]
[1772951724799,0.41969319,82.378,82.35,0.48060914]
[1772951728088,0.41908896,82.376,82.352,0.48060914]
[1772951732098,0.41908896,82.376,82.354,0.48060914]
[1772951734594,0.41908896,82.376,82.355,12.14255357]
[1772951734797,0.41908896,82.376,82.345,30.36007043]
[1772951734798,0.41828861,82.374,82.349,12.14339087]
[1772951735003,0.20775982,82.369,82.329,12.14638827]
[1772951735493,0.20775982,82.369,82.33,0.5083613]
[1772951736719,0.20781576,82.367,82.331,12.1460932]
[1772951737699,0.20786666,82.365,82.332,0.5083613]
[1772951737895,0.20786666,82.369,82.332,0.5083613]
[1772951738192,0.20792014,82.367,82.332,0.5083613]
[1772951740004,0.20792014,82.367,82.316,0.28432314]
[1772951740005,0.20802936,82.365,82.334,0.5083613]
[1772951744107,0.20802936,82.365,82.336,0.5083613]
[1772951747206,0.20802936,82.365,82.338,0.5083613]
[1772951747709,0.20838372,82.37,82.338,0.5083613]
[1772951749592,0.20838372,82.37,82.34,0.5083613]
[1772951753088,0.20838372,82.37,82.342,0.5083613]
[1772951756211,0.20838372,82.37,82.344,0.5083613]
[1772951757808,0.20838372,82.37,82.345,12.14402817]
[1772951758015,0.20838372,82.37,82.346,0.5083613]
[1772951763604,0.20838372,82.37,82.347,12.14373322]
[1772951763805,0.20914811,82.376,82.348,0.51597097]
[1772951765007,12.13938133,82.377,82.348,0.51597097]
[1772951765207,12.34860599,82.377,82.348,0.51597097]
[1772951765608,0.20922466,82.376,82.348,0.51597097]
[1772951766027,0.20922466,82.376,82.35,0.51597097]
[1772951768212,0.2093332,82.38,82.352,0.51597097]
[1772951768412,0.2093332,82.398,82.352,0.51597097]
[1772951774133,0.20882045,82.396,82.354,0.51597097]
[1772951777038,0.20838738,82.394,82.356,0.51597097]
[1772951778242,0.20824959,82.398,82.357,0.51597097]
[1772951778424,0.20824959,82.407,82.357,0.51597097]
[1772951779138,0.2081123,82.405,82.36,0.51597097]
[1772951781344,0.20783837,82.403,82.363,0.51597097]
[1772951782443,0.20783837,82.403,82.348,164.31738458]
[1772951782444,0.20770574,82.401,82.366,0.51597097]
[1772951784758,0.20770574,82.401,82.369,0.51597097]
[1772951786063,0.20770574,82.401,82.371,0.51597097]
[1772951789164,35.24859278,82.42,82.37,12.14034235]
[1772951789165,0.20681759,82.405,82.373,0.51597097]
[1772951790767,12.13507368,82.406,82.373,0.51597097]
[1772951791559,12.13507368,82.406,82.374,12.13975283]
[1772951791748,12.13507368,82.406,82.375,0.51597097]
[1772951793555,12.13507368,82.406,82.376,12.13945809]
[1772951793758,12.13507368,82.406,82.377,0.5240948]
[1772951795148,0.20598622,82.406,82.379,0.5240948]
[1772951796868,12.13518597,82.405,82.381,0.5240948]
[1772951797171,0.20575715,82.404,82.381,0.5240948]
[1772951800373,0.20543308,82.404,82.382,12.13857396]
[1772951800759,0.20543308,82.404,82.383,0.5240948]
[1772951802269,0.2052278,82.402,82.382,12.13857396]
[1772951803464,0.2052278,82.402,82.377,0.5240948]
[1772951804775,12.13577505,82.401,82.377,0.5240948]
[1772951804978,0.20501947,82.4,82.377,0.5240948]
[1772951806278,0.20501947,82.4,82.363,0.28432314]
[1772951806279,0.20501947,82.4,82.379,0.5240948]
[1772951807876,0.20501947,82.4,82.381,0.5240948]
[1772951810081,0.20501947,82.4,82.383,0.5240948]
[1772951812688,0.20423306,82.406,82.385,0.5240948]
[1772951815884,0.20395657,82.405,82.385,0.5240948]
[1772951819274,0.20395657,82.405,82.386,12.6620794]
[1772951819479,0.20395657,82.405,82.387,0.5240948]
[1772951819868,0.2036083,82.41,82.387,0.5240948]
[1772951820265,0.2,82.42,82.387,0.5240948]
[1772951820587,0.40352259,82.42,82.387,0.5240948]
[1772951821389,0.40352259,82.42,82.389,0.5240948]
[1772951821584,0.2,82.42,82.389,0.5240948]
[1772951821790,0.2,82.42,82.39,0.5240948]
[1772951822383,0.2,82.42,82.391,42.480368]
[1772951822591,0.2,82.42,82.392,0.50464064]
[1772951824602,0.20301042,82.428,82.394,0.50464064]
[1772951824899,0.20301042,82.428,82.395,0.50464064]
[1772951828787,0.20301042,82.428,82.398,0.50464064]
[1772951830703,0.20301042,82.428,82.4,0.50464064]
[1772951833104,0.20301042,82.428,82.401,12.13577505]
[1772951833311,0.20301042,82.428,82.389,30.34372378]
[1772951833606,30.32538094,82.44,82.39,12.13739531]
[1772951833607,0.51613088,82.426,82.39,12.13739531]
[1772951834489,0.51613088,82.426,82.39,42.48088359]
[1772951835387,0.51613088,82.424,82.393,0.50464064]
[1772951837889,0.51613088,82.424,82.394,12.13680607]
[1772951838208,0.51613088,82.424,82.395,0.50464064]
[1772951839006,0.51613088,82.424,82.397,0.50464064]
[1772951840105,0.51613088,82.424,82.399,0.50464064]
[1772951840894,0.51613088,82.424,82.4,0.50464064]
[1772951843200,0.51613088,82.424,82.402,0.50464064]
[1772951845521,0.51613088,82.424,82.404,0.50464064]
[1772951849114,0.51613088,82.424,82.406,0.50464064]
[1772951851113,0.51613088,82.434,82.408,0.50464064]
[1772951852405,0.51613088,82.434,82.393,0.48070393]
[1772951852602,0.51613088,82.434,82.383,0.48070393]
[1772951853723,0.50054262,82.432,82.385,0.28432314]
[1772951853902,0.50054262,82.432,82.386,0.48070393]
[1772951858909,0.50054262,82.43,82.388,0.48070393]
[1772951862225,0.50054262,82.428,82.39,0.48070393]
[1772951870337,0.50054262,82.426,82.392,0.48070393]
[1772951873132,0.50054262,82.424,82.393,12.61765731]
[1772951873334,0.50054262,82.424,82.394,0.48070393]
[1772951875434,0.50054262,82.422,82.396,0.48070393]
[1772951876843,0.50054262,82.422,82.381,0.28432314]
[1772951876844,0.50054262,82.422,82.392,0.48070393]
[1772951877246,0.50054262,82.42,82.394,0.48070393]
[1772951884754,0.50054262,82.42,82.395,12.13665877]
[1772951884955,0.50054262,82.42,82.396,0.49136901]
[1772951888170,0.50054262,82.42,82.398,0.49136901]
[1772951891271,0.50054262,82.42,82.4,0.49136901]
[1772951892867,42.45048453,82.449,82.402,0.49136901]
[1772951893171,0.47416568,82.448,82.402,0.49136901]
[1772951896867,0.47416568,82.446,82.404,0.49136901]
[1772951900074,12.12929832,82.445,82.405,12.13518597]
[1772951900280,0.47416568,82.444,82.406,0.49136901]
[1772951902598,0.47416568,82.442,82.408,0.49136901]
[1772951906188,0.47416568,82.44,82.41,0.49136901]
[1772951909318,0.47416568,82.438,82.412,0.49136901]
[1772951909705,0.47416568,82.438,82.411,12.13430245]
[1772951911407,0.47416568,82.436,82.407,0.49136901]
[1772951913389,12.13076969,82.435,82.408,12.13474419]
[1772951913710,0.49059643,82.434,82.409,0.47498878]
[1772951917711,0.49059643,82.434,82.41,12.1344497]
[1772951918012,0.49059643,82.434,82.411,0.47498878]
[1772951921210,0.49059643,82.438,82.413,0.47498878]
[1772951922809,12.62107182,82.437,82.415,0.47498878]
[1772951924023,0.49059643,82.436,82.415,0.47498878]
[1772951929320,0.49059643,82.436,82.417,0.47498878]
[1772951929517,0.49059643,82.443,82.419,0.47498878]
[1772951929899,0.49059643,82.449,82.419,0.47498878]
[1772951930716,0.49059643,82.448,82.419,0.47498878]
[1772951932320,0.49059643,82.448,82.421,0.47498878]
[1772951934719,0.49059643,82.448,82.422,12.13268302]
[1772951934922,0.49059643,82.448,82.423,0.47498878]
[1772951936723,0.49059643,82.447,82.423,0.47498878]
[1772951939426,0.49059643,82.447,82.425,0.47498878]
[1772951940734,0.49059643,82.447,82.427,0.47498878]
[1772951942235,0.49059643,82.447,82.428,12.13179987]
[1772951942535,0.49059643,82.447,82.428,12.59164268]
[1772951943720,0.49059643,82.447,82.429,0.47041752]
[1772951945423,0.2,82.46,82.42,42.46542101]
[1772951945424,0.48551655,82.459,82.421,0.47041752]
[1772951945812,0.48551655,82.459,82.424,0.47041752]
[1772951948238,0.48551655,82.459,82.427,0.47041752]
[1772951948415,0.48551655,82.457,82.415,0.47041752]
[1772951949015,0.48551655,82.457,82.416,0.47041752]
[1772951951938,0.48551655,82.455,82.419,0.47041752]
[1772951952140,0.68551655,82.46,82.419,0.47041752]
[1772951952318,0.48551655,82.459,82.419,0.47041752]
[1772951954743,0.48551655,82.459,82.422,0.47041752]
[1772951957243,0.48551655,82.459,82.425,0.47041752]
[1772951960224,0.48551655,82.459,82.423,42.46387537]
[1772951960225,0.48551655,82.459,82.428,0.47041752]
[1772951961250,0.2,82.53,82.48,0.14206044]
[1772951961430,4.90892467,82.53,82.48,0.14206044]
[1772951961630,4.90892467,82.53,82.482,0.14206044]
[1772951961631,0.2,82.53,82.482,0.14206044]
[1772951961833,0.48551655,82.519,82.484,0.14206044]
[1772951962448,0.48551655,82.519,82.485,0.14232367]
[1772951963433,0.48551655,82.519,82.486,54.40512593]
[1772951963641,0.48551655,82.519,82.487,0.14258419]
[1772951963834,0.48551655,82.519,82.487,54.40512593]
[1772951964152,0.48551655,82.519,82.488,0.14258419]
[1772951964338,0.48551655,82.519,82.489,0.14284071]
[1772951964729,0.48551655,82.519,82.49,0.14284071]
[1772951966348,0.48551655,82.519,82.491,0.14333965]
[1772951966658,0.48551655,82.519,82.472,0.14333965]
[1772951967935,0.48551655,82.517,82.481,0.47041752]
[1772951968858,0.48551655,82.517,82.483,0.47041752]
[1772951971561,0.48551655,82.517,82.484,12.12356335]
[1772951972536,0.48551655,82.517,82.484,12.59710598]
[1772951973750,0.47694115,82.515,82.484,12.12356335]
[1772951977260,0.47694115,82.513,82.482,0.47354263]
[1772951983563,0.47694115,82.513,82.484,0.47354263]
[1772951985667,0.47694115,82.509,82.485,12.12341637]
[1772951987071,0.47694115,82.509,82.475,30.31208569]
[1772951987251,0.47694115,82.509,82.475,30.78562832]
[1772951987647,0.47694115,82.509,82.475,30.31208569]
[1772951987851,0.47694115,82.508,82.477,12.12459231]
[1772951988251,0.47694115,82.508,82.477,12.59813494]
[1772951989565,0.47694115,82.508,82.478,0.47354263]
[1772951990968,0.47694115,82.508,82.479,12.1242983]
[1772951992378,0.47694115,82.506,82.479,12.1242983]
[1772951994060,0.47694115,82.504,82.479,12.1242983]
[1772951996970,0.47694115,82.504,82.48,0.47354263]
[1772951998180,12.12077136,82.503,82.48,0.47354263]
[1772951998374,0.47694115,82.502,82.48,0.47354263]
[1772951999578,0.47694115,82.5,82.461,0.47354263]
[1772952001388,0.47694115,82.519,82.462,0.47354263]
[1772952001680,0.47694115,82.519,82.467,0.47354263]
[1772952002181,0.47694115,82.519,82.468,0.28432314]
[1772952002386,0.2,82.53,82.474,0.51072711]
[1772952002586,0.47849298,82.537,82.478,3.69383402]
[1772952002760,0.47849298,82.537,82.482,3.69383402]
[1772952002966,0.47849298,82.537,82.484,0.51072711]
[1772952003160,0.47849298,82.537,82.486,0.51072711]
[1772952003363,0.47849298,82.537,82.488,0.28432314]
[1772952003572,0.47849298,82.537,82.491,0.51072711]
[1772952005979,0.47849298,82.537,82.493,0.28432314]
[1772952006180,0.47849298,82.537,82.494,0.51072711]
[1772952008275,0.47849298,82.537,82.497,0.51072711]
[1772952008992,0.2,82.54,82.497,0.51072711]
[1772952009167,0.2,82.54,82.496,0.28432314]
[1772952009168,0.47849298,82.543,82.499,0.51072711]
[1772952009494,0.47849298,82.542,82.499,0.51072711]
[1772952010684,0.47849298,82.542,82.496,0.28432314]
[1772952010685,0.47849298,82.54,82.501,0.51072711]
[1772952013584,0.47849298,82.538,82.503,0.51072711]
[1772952013765,0.47849298,82.538,82.502,12.12091828]
[1772952015397,12.11695282,82.529,82.493,12.12224067]
[1772952015699,0.47849298,82.519,82.493,12.12224067]
[1772952016276,0.47849298,82.519,82.483,12.63443745]
[1772952016677,0.47849298,82.519,82.483,12.12371034]
[1772952017293,0.47849298,82.519,82.477,12.12457435]
[1772952017490,12.11856806,82.518,82.477,12.12457435]
[1772952017795,0.47849298,82.509,82.477,12.12457435]
[1772952018796,0.47849298,82.509,82.477,12.63530146]
[1772952019802,0.47849298,82.508,82.478,0.51072711]
[1772952020002,0.47849298,82.508,82.468,0.51072711]
[1772952022599,0.47849298,82.508,82.47,0.51072711]
[1772952024008,0.47849298,82.519,82.47,0.51072711]
[1772952025102,12.11829808,82.52,82.454,3.69383402]
[1772952025103,0.47849298,82.517,82.472,0.51072711]
[1772952026304,0.47849298,82.515,82.474,0.51072711]
[1772952029284,0.47849298,82.513,82.476,0.51072711]
[1772952032308,0.47849298,82.511,82.478,0.51072711]
[1772952035393,0.48853643,82.509,82.48,0.48125555]
[1772952037917,0.48853643,82.507,82.481,12.12400431]
[1772952038205,0.48853643,82.507,82.477,12.1245692]
[1772952038620,0.48853643,82.499,82.457,0.48125555]
[1772952038997,0.48853643,82.499,82.458,0.48125555]
[1772952040805,0.48853643,82.497,82.46,0.48125555]
[1772952041010,0.48853643,82.489,82.451,12.1284105]
[1772952042307,0.48853643,82.489,82.448,12.61005737]
[1772952042818,0.48853643,82.469,82.435,12.13076969]
[1772952043815,12.1259155,82.468,82.435,12.13076969]
[1772952043997,0.48853643,82.467,82.435,12.13076969]
[1772952045023,0.48853643,82.467,82.436,0.48125555]
[1772952045218,0.48853643,82.474,82.436,0.48125555]
[1772952046305,0.48853643,82.472,82.438,0.48125555]
[1772952050425,0.48853643,82.47,82.44,0.48125555]
[1772952050921,0.48853643,82.469,82.439,12.1301811]
[1772952051698,0.48853643,82.469,82.44,0.48125555]
[1772952054814,0.48853643,82.467,82.44,0.48125555]
[1772952055215,0.48853643,82.467,82.441,12.12988682]
[1772952057332,0.48853643,82.465,82.441,0.48125555]
[1772952060130,0.48853643,82.463,82.433,0.48125555]
[1772952060733,0.48853643,82.463,82.44,0.114179]
[1772952061214,0.48853643,82.463,82.44,0.59543455]
[1772952062433,0.47121629,82.461,82.44,0.59543455]
[1772952063141,0.28432314,82.488,82.44,0.59543455]
[1772952063142,0.46858165,82.478,82.442,0.45914278]
[1772952064735,0.46858165,82.477,82.444,0.45914278]
[1772952066018,12.1244453,82.478,82.446,0.45914278]
[1772952066019,0.46858165,82.475,82.446,0.45914278]
[1772952068338,0.46858165,82.473,82.446,0.45914278]
[1772952069337,0.46858165,82.473,82.448,0.45914278]
[1772952070835,12.12532738,82.472,82.448,0.45914278]
[1772952071021,12.12532738,82.472,82.44,0.114179]
[1772952071022,0.46858165,82.471,82.45,0.45914278]
[1772952074025,0.46858165,82.471,82.451,12.12841566]
[1772952074228,0.46858165,82.471,82.452,0.45914278]
[1772952076744,0.46858165,82.469,82.441,0.45914278]
[1772952076953,0.46858165,82.469,82.44,0.114179]
[1772952077136,0.46858165,82.469,82.441,0.45914278]
[1772952080438,0.46858165,82.467,82.443,0.45914278]
[1772952081562,12.12312243,82.487,82.443,0.45914278]
[1772952081737,0.46858165,82.486,82.443,0.45914278]
[1772952082542,0.46858165,82.484,82.445,0.45914278]
[1772952084870,0.46858165,82.482,82.447,0.45914278]
[1772952089362,0.46858165,82.48,82.449,0.45914278]
[1772952092376,0.46858165,82.478,82.451,0.45914278]
[1772952094557,0.46858165,82.478,82.453,0.50314487]
[1772952096779,0.46858165,82.478,82.44,0.114179]
[1772952096780,0.48448815,82.498,82.455,0.50314487]
[1772952097004,0.48448815,82.498,82.456,0.50314487]
[1772952098887,12.1216529,82.497,82.458,0.28432314]
[1772952099087,0.48448815,82.496,82.459,0.50314487]
[1772952101289,0.48448815,82.496,82.461,0.50314487]
[1772952101599,0.48448815,82.494,82.461,0.50314487]
[1772952104524,0.48448815,82.494,82.463,0.50314487]
[1772952106483,0.48448815,82.492,82.465,0.50314487]
[1772952115586,0.48448815,82.492,82.467,0.50314487]
[1772952121107,0.48448815,82.492,82.468,12.1259155]
[1772952121312,0.48448815,82.492,82.469,0.50314487]
[1772952124918,0.48448815,82.492,82.471,0.48519438]
[1772952126789,0.48953121,82.503,82.471,0.48519438]
[1772952127023,0.48953121,82.503,82.473,0.48519438]
[1772952127600,0.48953121,82.501,82.473,0.48519438]
[1772952131527,0.48953121,82.505,82.475,0.48519438]
[1772952132515,0.48953121,82.505,82.477,0.48519438]
[1772952134534,0.48953121,82.505,82.479,0.48519438]
[1772952134720,0.48953121,82.499,82.462,12.12672918]
[1772952134904,0.48953121,82.499,82.45,12.12856276]
[1772952136013,0.48953121,82.499,82.45,42.44996967]
[1772952136922,0.48953121,82.497,82.451,0.05651808]
[1772952140409,0.48953121,82.495,82.451,0.05651808]
[1772952143305,12.12209372,82.494,82.451,0.05651808]
[1772952143512,0.48953121,82.493,82.451,0.05651808]
[1772952146435,12.12238762,82.492,82.451,0.05651808]
[1772952146738,0.48953121,82.491,82.451,0.05651808]
[1772952149331,12.12268153,82.49,82.451,0.05651808]
[1772952149637,0.48953121,82.489,82.451,0.05651808]
[1772952152240,12.12297546,82.488,82.451,0.05651808]
[1772952152538,0.48953121,82.487,82.451,0.05651808]
[1772952176661,0.47569431,82.485,82.451,0.05651808]
[1772952177560,0.47569431,82.489,82.451,0.05651808]
[1772952191552,0.4791206,82.487,82.448,42.45099941]
[1772952191877,12.12297546,82.488,82.421,60.6638158]
[1772952191878,0.4791206,82.469,82.441,12.12988682]
[1772952192671,0.4791206,82.467,82.431,0.05261067]
[1772952192856,0.4791206,82.467,82.433,0.05261067]
[1772952193880,0.4791206,82.467,82.426,12.13209424]
[1772952194175,0.4791206,82.459,82.427,0.16669832]
[1772952194752,0.4791206,82.463,82.428,0.16669832]
[1772952195774,12.12459168,82.478,82.429,0.50183086]
[1772952197474,12.12282849,82.489,82.432,0.50183086]
[1772952197862,0.4791206,82.488,82.432,0.50183086]
[1772952198969,0.4791206,82.479,82.432,0.50183086]
[1772952199684,0.4791206,82.477,82.435,0.50183086]
[1772952203086,0.4791206,82.475,82.436,0.28432314]
[1772952204987,0.4791206,82.475,82.439,0.14539256]
[1772952208175,0.4791206,82.475,82.44,0.14527396]
[1772952208378,0.4791206,82.475,82.439,42.10090781]
[1772952209972,0.4791206,82.475,82.439,41.60090781]
[1772952212384,0.4791206,82.475,82.427,42.46181469]
[1772952212589,0.4791206,82.475,82.428,0.28432314]
[1772952215393,0.4791206,82.475,82.429,12.13165269]
[1772952215580,0.4791206,82.475,82.43,0.28432314]
[1772952218596,0.4791206,82.475,82.432,0.28432314]
[1772952221397,0.4791206,82.475,82.433,42.45872404]
[1772952221601,0.4791206,82.475,82.434,0.28432314]
[1772952225502,0.4791206,82.475,82.436,0.28432314]
[1772952226305,0.50168149,82.473,82.435,42.45769393]
[1772952226509,0.50168149,82.469,82.435,12.13076969]
[1772952229903,0.50168149,82.467,82.427,0.28432314]
[1772952233704,12.12620958,82.466,82.426,42.24664453]
[1772952234004,0.50168149,82.465,82.426,42.24664453]
[1772952235716,0.50168149,82.463,82.426,41.74664453]
[1772952236606,0.50168149,82.463,82.427,0.28432314]
[1772952237203,0.50168149,82.463,82.426,41.53096767]
[1772952239108,0.50168149,82.463,82.428,42.46129955]
[1772952239315,0.50168149,82.463,82.429,0.28432314]
[1772952240703,0.50168149,82.463,82.428,42.24562269]
[1772952241915,0.50168149,82.463,82.428,41.74562269]
[1772952242914,0.50168149,82.463,82.429,0.28432314]
[1772952243501,0.50168149,82.463,82.428,41.52994583]
[1772952248721,4.70777332,82.49,82.428,41.52994583]
[1772952248722,4.70777332,82.49,82.451,0.46248404]
[1772952248926,0.48208276,82.489,82.428,41.52994583]
[1772952249107,0.48208276,82.478,82.428,41.52994583]
[1772952250931,0.48208276,82.475,82.428,41.56798771]
[1772952251119,0.48208276,82.475,82.429,0.03804188]
[1772952252626,0.48208276,82.469,82.429,0.03804188]
[1772952254649,0.48208276,82.467,82.429,0.03804188]
[1772952259010,12.12488632,82.475,82.43,0.46248404]
[1772952260128,12.12488632,82.475,82.431,42.45975421]
[1772952260326,12.12488632,82.475,82.432,0.46248404]
[1772952260937,0.45200457,82.474,82.432,0.46248404]
[1772952262833,0.45200457,82.472,82.434,0.46248404]
[1772952264832,12.1254744,82.471,82.435,12.13076969]
[1772952265032,0.45200457,82.47,82.436,0.46248404]
[1772952267638,0.45200457,82.468,82.438,0.46248404]
[1772952269662,0.45200457,82.466,82.426,0.46248404]
[1772952269843,0.45200457,82.466,82.427,0.46248404]
[1772952271837,0.45200457,82.464,82.429,0.46248404]
[1772952274434,0.47197156,82.474,82.431,0.45083976]
[1772952277231,0.47197156,82.472,82.433,0.45083976]
[1772952278659,0.47197156,82.47,82.435,0.45083976]
[1772952286557,0.47197156,82.468,82.437,0.45083976]
[1772952289245,0.47197156,82.468,82.439,0.45083976]
[1772952296667,0.47197156,82.466,82.441,0.45083976]
[1772952303410,0.49480793,82.464,82.442,12.61371945]
[1772952304095,0.49480793,82.464,82.442,12.12973969]
[1772952304596,0.49480793,82.464,82.443,0.48397976]
[1772952306477,0.49480793,82.464,82.445,0.48397976]
[1772952307605,42.42989973,82.489,82.445,0.48397976]
[1772952308103,0.28432314,82.488,82.445,0.48397976]
[1772952309000,0.28432314,82.488,82.426,60.66045057]
[1772952309001,0.28432314,82.479,82.432,0.48397976]
[1772952309390,0.49480793,82.478,82.432,0.48397976]
[1772952309788,0.49480793,82.478,82.436,12.13049341]
[1772952309990,0.49480793,82.475,82.439,0.48397976]
[1772952313287,0.49480793,82.473,82.441,0.48397976]
[1772952313705,30.30809562,82.487,82.441,0.48397976]
[1772952313706,12.12415304,82.48,82.441,0.48397976]
[1772952314002,0.49480793,82.478,82.441,0.48397976]
[1772952315907,0.49480793,82.475,82.441,0.48397976]
[1772952318798,0.49480793,82.473,82.442,12.12973969]
[1772952320604,0.49480793,82.473,82.442,12.61371945]
[1772952321816,0.49480793,82.471,82.443,0.48397976]
[1772952322205,0.49480793,82.469,82.439,0.48397976]
[1772952323814,0.49480793,82.467,82.441,0.48397976]
[1772952327518,12.12620958,82.466,82.441,0.48397976]
[1772952327701,0.49480793,82.465,82.441,0.48397976]
[1772952330734,0.49480793,82.459,82.416,30.33362005]
[1772952330910,0.49480793,82.458,82.422,12.13254596]
[1772952331927,4.70757585,82.46,82.422,12.13254596]
[1772952331928,0.49480793,82.455,82.422,12.13254596]
[1772952332109,0.49480793,82.455,82.424,0.48397976]
[1772952332608,0.46351955,82.439,82.425,8.60694312]
[1772952332815,0.46351955,82.439,82.425,8.40677774]
[1772952333818,12.13032824,82.438,82.425,8.40677774]
[1772952334130,0.46351955,82.437,82.425,8.40677774]
[1772952340334,0.46351955,82.435,82.425,8.40677774]
[1772952347832,0.46351955,82.44,82.425,8.40677774]
[1772952350238,12.1301811,82.439,82.426,0.48694471]
[1772952351349,12.59301269,82.444,82.426,0.48694471]
[1772952353450,12.59239377,82.448,82.426,0.48694471]
[1772952353646,0.46351955,82.447,82.425,8.40677774]
[1772952353948,0.46351955,82.446,82.425,8.40677774]
[1772952354844,0.46351955,82.444,82.425,8.40677774]
[1772952356249,0.46351955,82.442,82.426,0.48694471]
[1772952358458,0.46351955,82.44,82.426,0.48694471]
[1772952362557,12.1301811,82.439,82.426,0.48694471]
[1772952362757,12.58450396,82.439,82.426,0.48694471]
[1772952363453,0.45432286,82.438,82.426,0.48694471]
[1772952366145,0.28432314,82.449,82.426,0.48694471]
[1772952366462,0.45432286,82.459,82.428,0.4542223]
[1772952366757,0.45432286,82.458,82.428,0.4542223]
[1772952369670,0.45432286,82.455,82.428,0.4542223]
[1772952370988,0.45432286,82.455,82.43,0.4542223]
[1772952372181,0.45432286,82.455,82.432,0.4542223]
[1772952374176,12.58141478,82.46,82.434,0.4542223]
[1772952374360,0.45432286,82.459,82.434,0.4542223]
[1772952375764,0.45432286,82.459,82.436,0.4542223]